[Event "Titled Tuesday Blitz April 18 Early 2023"]
[White "SashaKuzhilniy"]
[Black "Goltsev, Dmitry"]
[BlackFideId "24176710"]
[WhiteElo "2554"]
[BlackElo "2336"]
[Result "1/2-1/2"]
[Round "02"]
[TimeControl "180+2"]
[Date "2023.04.18"]
[WhiteClock "0:00:09"]
[BlackClock "0:00:06"]

1. b3 {[%clk 0:03:00]}  Nf6 {[%clk 0:02:50]} 2. Bb2 {[%clk 0:03:01]}  g6 {[%clk 0:02:50]} 3. Nf3 {[%clk 0:03:00]}  Bg7 {[%clk 0:02:51]} 4. g3 {[%clk 0:03:00]}  Nh5 {[%clk 0:02:51]} 5. Bxg7 {[%clk 0:02:59]}  Nxg7 {[%clk 0:02:52]} 6. Bg2 {[%clk 0:02:58]}  O-O {[%clk 0:02:53]} 7. c4 {[%clk 0:02:51]}  c6 {[%clk 0:02:54]} 8. Nc3 {[%clk 0:02:46]}  d5 {[%clk 0:02:55]} 9. d3 {[%clk 0:02:40]}  f6 {[%clk 0:02:53]} 10. O-O {[%clk 0:02:29]}  e5 {[%clk 0:02:44]} 11. b4 {[%clk 0:02:22]}  Be6 {[%clk 0:02:43]} 12. Nd2 {[%clk 0:01:50]}  Na6 {[%clk 0:02:41]} 13. b5 {[%clk 0:01:45]}  Nc7 {[%clk 0:02:33]} 14. bxc6 {[%clk 0:01:43]}  bxc6 {[%clk 0:02:34]} 15. cxd5 {[%clk 0:01:40]}  cxd5 {[%clk 0:02:28]} 16. Qa4 {[%clk 0:01:38]}  Qd6 {[%clk 0:02:17]} 17. Rab1 {[%clk 0:01:30]}  a6 {[%clk 0:02:12]} 18. Qb4 {[%clk 0:01:10]}  Qxb4 {[%clk 0:02:06]} 19. Rxb4 {[%clk 0:01:11]}  Rab8 {[%clk 0:02:06]} 20. Rfb1 {[%clk 0:00:48]}  Rxb4 {[%clk 0:02:06]} 21. Rxb4 {[%clk 0:00:49]}  d4 {[%clk 0:02:06]} 22. Nce4 {[%clk 0:00:48]}  Nd5 {[%clk 0:02:02]} 23. Ra4 {[%clk 0:00:37]}  Nc3 {[%clk 0:01:56]} 24. Rxa6 {[%clk 0:00:37]}  Nxe2+ {[%clk 0:01:56]} 25. Kf1 {[%clk 0:00:37]}  Nc1 {[%clk 0:01:53]} 26. Nc5 {[%clk 0:00:32]}  Bxa2 {[%clk 0:01:50]} 27. Rxa2 {[%clk 0:00:32]}  Nxa2 {[%clk 0:01:45]} 28. Bd5+ {[%clk 0:00:32]}  Kh8 {[%clk 0:01:45]} 29. Bxa2 {[%clk 0:00:33]}  Rc8 {[%clk 0:01:46]} 30. Ndb3 {[%clk 0:00:24]}  Ra8 {[%clk 0:01:38]} 31. Bb1 {[%clk 0:00:23]}  Nf5 {[%clk 0:01:35]} 32. Ke2 {[%clk 0:00:22]}  Nd6 {[%clk 0:01:31]} 33. f4 {[%clk 0:00:19]}  Nb5 {[%clk 0:01:30]} 34. Kd2 {[%clk 0:00:17]}  Nc3 {[%clk 0:01:26]} 35. Bc2 {[%clk 0:00:17]}  Kg7 {[%clk 0:01:23]} 36. fxe5 {[%clk 0:00:17]}  fxe5 {[%clk 0:01:24]} 37. Ne4 {[%clk 0:00:18]}  Nd5 {[%clk 0:01:21]} 38. Nbc5 {[%clk 0:00:18]}  Ra1 {[%clk 0:01:19]} 39. Bb3 {[%clk 0:00:18]}  Ne3 {[%clk 0:01:16]} 40. h4 {[%clk 0:00:17]}  Rg1 {[%clk 0:01:14]} 41. Ne6+ {[%clk 0:00:17]}  Kh6 {[%clk 0:01:08]} 42. N6g5 {[%clk 0:00:17]}  Nf1+ {[%clk 0:01:04]} 43. Ke2 {[%clk 0:00:16]}  Nxg3+ {[%clk 0:01:00]} 44. Kf2 {[%clk 0:00:14]}  Rb1 {[%clk 0:00:56]} 45. Kxg3 {[%clk 0:00:14]}  Rxb3 {[%clk 0:00:55]} 46. Nf7+ {[%clk 0:00:14]}  Kg7 {[%clk 0:00:55]} 47. Nxe5 {[%clk 0:00:15]}  Rb5 {[%clk 0:00:53]} 48. Nf3 {[%clk 0:00:15]}  Rb4 {[%clk 0:00:51]} 49. Ned2 {[%clk 0:00:12]}  Kf6 {[%clk 0:00:42]} 50. Kf4 {[%clk 0:00:12]}  Ra4 {[%clk 0:00:39]} 51. Nc4 {[%clk 0:00:12]}  h6 {[%clk 0:00:37]} 52. Nxd4 {[%clk 0:00:11]}  Ra1 {[%clk 0:00:32]} 53. Nf3 {[%clk 0:00:11]}  Rf1 {[%clk 0:00:30]} 54. Ne3 {[%clk 0:00:11]}  Ra1 {[%clk 0:00:29]} 55. Ng4+ {[%clk 0:00:11]}  Kg7 {[%clk 0:00:29]} 56. d4 {[%clk 0:00:12]}  Ra4 {[%clk 0:00:28]} 57. Nge5 {[%clk 0:00:11]}  Kf6 {[%clk 0:00:24]} 58. Ng4+ {[%clk 0:00:11]}  Kg7 {[%clk 0:00:24]} 59. Ke4 {[%clk 0:00:12]}  Ra1 {[%clk 0:00:17]} 60. d5 {[%clk 0:00:12]}  Rd1 {[%clk 0:00:17]} 61. Ne3 {[%clk 0:00:12]}  Ra1 {[%clk 0:00:14]} 62. d6 {[%clk 0:00:12]}  Ra4+ {[%clk 0:00:13]} 63. Nd4 {[%clk 0:00:13]}  Ra6 {[%clk 0:00:09]} 64. Ke5 {[%clk 0:00:12]}  Kf7 {[%clk 0:00:08]} 65. Nd5 {[%clk 0:00:12]}  Ke8 {[%clk 0:00:06]} 66. Ke6 {[%clk 0:00:12]}  g5 {[%clk 0:00:05]} 67. hxg5 {[%clk 0:00:12]}  hxg5 {[%clk 0:00:06]} 68. Nf6+ {[%clk 0:00:10]}  Kd8 {[%clk 0:00:05]} 69. Nf5 {[%clk 0:00:10]}  g4 {[%clk 0:00:05]} 70. Nxg4 {[%clk 0:00:10]}  Rxd6+ {[%clk 0:00:06]} 71. Kxd6 {[%clk 0:00:09]} 1/2-1/2


[Site "https://www.chess.com"]

[Event "Titled Tuesday Blitz April 18 Early 2023"]
[White "Kukhmazov, Arsen"]
[Black "koncheto"]
[WhiteFideId "24108260"]
[WhiteElo "2396"]
[BlackElo "2554"]
[Result "1-0"]
[Round "02"]
[TimeControl "180+2"]
[Date "2023.04.18"]
[WhiteClock "0:00:16"]
[BlackClock "0:00:02"]

1. d4 {[%clk 0:02:59]}  Nf6 {[%clk 0:02:59]} 2. c4 {[%clk 0:03:00]}  e6 {[%clk 0:03:00]} 3. Nc3 {[%clk 0:02:59]}  c5 {[%clk 0:03:01]} 4. d5 {[%clk 0:02:55]}  exd5 {[%clk 0:03:02]} 5. cxd5 {[%clk 0:02:56]}  d6 {[%clk 0:02:59]} 6. Nf3 {[%clk 0:02:56]}  g6 {[%clk 0:02:59]} 7. Bf4 {[%clk 0:02:56]}  a6 {[%clk 0:02:59]} 8. e4 {[%clk 0:02:56]}  Bg4 {[%clk 0:02:56]} 9. h3 {[%clk 0:02:16]}  Bxf3 {[%clk 0:02:55]} 10. Qxf3 {[%clk 0:02:17]}  Bg7 {[%clk 0:02:55]} 11. a4 {[%clk 0:02:16]}  O-O {[%clk 0:02:53]} 12. Be2 {[%clk 0:02:14]}  Qe7 {[%clk 0:02:42]} 13. O-O {[%clk 0:02:13]}  Nbd7 {[%clk 0:02:42]} 14. Qg3 {[%clk 0:02:12]}  Ne8 {[%clk 0:02:30]} 15. Rfe1 {[%clk 0:02:05]}  Ne5 {[%clk 0:02:20]} 16. Be3 {[%clk 0:01:53]}  Nc7 {[%clk 0:02:17]} 17. f4 {[%clk 0:01:53]}  Nd7 {[%clk 0:02:18]} 18. Rad1 {[%clk 0:01:37]}  Bxc3 {[%clk 0:01:43]} 19. bxc3 {[%clk 0:01:38]}  Qxe4 {[%clk 0:01:43]} 20. c4 {[%clk 0:01:37]}  Qc2 {[%clk 0:01:07]} 21. f5 {[%clk 0:01:37]}  Ne5 {[%clk 0:00:58]} 22. f6 {[%clk 0:01:27]}  Kh8 {[%clk 0:00:44]} 23. Qh4 {[%clk 0:01:12]}  Rae8 {[%clk 0:00:33]} 24. Bh6 {[%clk 0:00:45]}  Rg8 {[%clk 0:00:33]} 25. Rb1 {[%clk 0:00:45]}  b5 {[%clk 0:00:26]} 26. axb5 {[%clk 0:00:43]}  axb5 {[%clk 0:00:26]} 27. cxb5 {[%clk 0:00:44]}  Nxd5 {[%clk 0:00:27]} 28. b6 {[%clk 0:00:44]}  Nc3 {[%clk 0:00:18]} 29. Bb5 {[%clk 0:00:20]}  Nxb5 {[%clk 0:00:09]} 30. Rxb5 {[%clk 0:00:21]}  Qc3 {[%clk 0:00:07]} 31. Bg7+ {[%clk 0:00:20]}  Rxg7 {[%clk 0:00:07]} 32. fxg7+ {[%clk 0:00:21]}  Kxg7 {[%clk 0:00:08]} 33. Rf1 {[%clk 0:00:21]}  f5 {[%clk 0:00:04]} 34. b7 {[%clk 0:00:21]}  Nc6 {[%clk 0:00:04]} 35. Rb6 {[%clk 0:00:18]}  Nb8 {[%clk 0:00:02]} 36. Rxd6 {[%clk 0:00:18]}  Qe5 {[%clk 0:00:01]} 37. Rd8 {[%clk 0:00:17]}  c4 {[%clk 0:00:01]} 38. Rxe8 {[%clk 0:00:15]}  Qxe8 {[%clk 0:00:02]} 39. Qxc4 {[%clk 0:00:15]}  Qe3+ {[%clk 0:00:02]} 40. Kh1 {[%clk 0:00:16]}  Qe5 {[%clk 0:00:02]} 41. Rc1 {[%clk 0:00:16]} 1-0


[Site "https://www.chess.com"]

[Event "Titled Tuesday Blitz April 18 Early 2023"]
[White "Al-Tarboush, Ward"]
[Black "Licznerski, Lukasz"]
[WhiteFideId "7601450"]
[BlackFideId "1179250"]
[WhiteElo "2265"]
[BlackElo "2450"]
[Result "0-1"]
[Round "02"]
[TimeControl "180+2"]
[Date "2023.04.18"]
[WhiteClock "0:00:33"]
[BlackClock "0:01:39"]

1. e4 {[%clk 0:03:00]}  c6 {[%clk 0:02:58]} 2. Nf3 {[%clk 0:03:01]}  d5 {[%clk 0:02:59]} 3. Nc3 {[%clk 0:03:01]}  Bg4 {[%clk 0:02:57]} 4. h3 {[%clk 0:03:01]}  Bh5 {[%clk 0:02:57]} 5. d4 {[%clk 0:02:58]}  e6 {[%clk 0:02:56]} 6. Bd3 {[%clk 0:02:58]}  dxe4 {[%clk 0:02:52]} 7. Nxe4 {[%clk 0:02:58]}  Nd7 {[%clk 0:02:51]} 8. O-O {[%clk 0:02:58]}  Ngf6 {[%clk 0:02:51]} 9. Ng3 {[%clk 0:02:31]}  Bg6 {[%clk 0:02:50]} 10. Bf4 {[%clk 0:02:31]}  Be7 {[%clk 0:02:38]} 11. c3 {[%clk 0:02:24]}  O-O {[%clk 0:02:37]} 12. Re1 {[%clk 0:02:23]}  Qb6 {[%clk 0:02:36]} 13. Bxg6 {[%clk 0:02:20]}  hxg6 {[%clk 0:02:35]} 14. Qe2 {[%clk 0:02:17]}  c5 {[%clk 0:02:32]} 15. Rad1 {[%clk 0:02:16]}  Rfd8 {[%clk 0:02:30]} 16. d5 {[%clk 0:02:13]}  Nf8 {[%clk 0:02:25]} 17. c4 {[%clk 0:02:04]}  Bd6 {[%clk 0:02:16]} 18. Bg5 {[%clk 0:01:44]}  Bxg3 {[%clk 0:02:14]} 19. fxg3 {[%clk 0:01:30]}  exd5 {[%clk 0:02:14]} 20. Bxf6 {[%clk 0:01:16]}  gxf6 {[%clk 0:02:15]} 21. cxd5 {[%clk 0:01:16]}  Rd7 {[%clk 0:02:06]} 22. b3 {[%clk 0:01:12]}  c4+ {[%clk 0:01:54]} 23. Kh2 {[%clk 0:01:10]}  cxb3 {[%clk 0:01:53]} 24. axb3 {[%clk 0:01:10]}  Qxb3 {[%clk 0:01:49]} 25. Nd4 {[%clk 0:01:02]}  Qxd5 {[%clk 0:01:41]} 26. Ne6 {[%clk 0:00:33]}  Qxe6 {[%clk 0:01:39]} 0-1


[Site "https://www.chess.com"]

[Event "Titled Tuesday Blitz April 18 Early 2023"]
[White "Mammadov, Zaur"]
[Black "Reprintsev, Alexander"]
[WhiteFideId "13401033"]
[BlackFideId "14100541"]
[WhiteElo "2441"]
[BlackElo "2211"]
[Result "1-0"]
[Round "02"]
[TimeControl "180+2"]
[Date "2023.04.18"]
[WhiteClock "0:02:11"]
[BlackClock "0:01:02"]

1. e4 {[%clk 0:03:00]}  e5 {[%clk 0:02:44]} 2. Nf3 {[%clk 0:03:00]}  Nc6 {[%clk 0:02:43]} 3. Nc3 {[%clk 0:03:01]}  Bc5 {[%clk 0:02:37]} 4. Nxe5 {[%clk 0:03:00]}  Nxe5 {[%clk 0:02:22]} 5. d4 {[%clk 0:03:00]}  Bd6 {[%clk 0:02:22]} 6. dxe5 {[%clk 0:02:59]}  Bxe5 {[%clk 0:02:22]} 7. Bc4 {[%clk 0:03:00]}  Nf6 {[%clk 0:02:21]} 8. O-O {[%clk 0:02:59]}  O-O {[%clk 0:02:20]} 9. Bg5 {[%clk 0:02:54]}  h6 {[%clk 0:02:19]} 10. Bh4 {[%clk 0:02:54]}  d6 {[%clk 0:02:17]} 11. f4 {[%clk 0:02:52]}  Bxc3 {[%clk 0:02:17]} 12. bxc3 {[%clk 0:02:53]}  Be6 {[%clk 0:02:16]} 13. Bd3 {[%clk 0:02:51]}  c6 {[%clk 0:01:43]} 14. e5 {[%clk 0:02:35]}  g5 {[%clk 0:01:41]} 15. exf6 {[%clk 0:02:26]}  gxh4 {[%clk 0:01:41]} 16. f5 {[%clk 0:02:26]}  Qxf6 {[%clk 0:01:23]} 17. fxe6 {[%clk 0:02:21]}  Qxe6 {[%clk 0:01:22]} 18. Qh5 {[%clk 0:02:17]}  Rae8 {[%clk 0:01:15]} 19. Qxh4 {[%clk 0:02:15]}  f5 {[%clk 0:01:13]} 20. Rae1 {[%clk 0:02:15]}  Qg6 {[%clk 0:01:03]} 21. Rxe8 {[%clk 0:02:12]}  Qxe8 {[%clk 0:01:02]} 22. Qxh6 {[%clk 0:02:11]} 1-0


[Site "https://www.chess.com"]

[Event "Titled Tuesday Blitz April 18 Early 2023"]
[White "Aizpurua, Patrick Emilio"]
[Black "Ashraf, Artin"]
[WhiteFideId "6600522"]
[BlackFideId "22514805"]
[WhiteElo "2378"]
[BlackElo "2188"]
[Result "1-0"]
[Round "02"]
[TimeControl "180+2"]
[Date "2023.04.18"]
[WhiteClock "0:02:09"]
[BlackClock "0:00:04"]

1. d4 {[%clk 0:03:00]}  Nf6 {[%clk 0:02:54]} 2. c4 {[%clk 0:02:52]}  g6 {[%clk 0:02:53]} 3. Nc3 {[%clk 0:02:52]}  Bg7 {[%clk 0:02:53]} 4. e4 {[%clk 0:02:52]}  d6 {[%clk 0:02:52]} 5. Be2 {[%clk 0:02:52]}  O-O {[%clk 0:02:50]} 6. Nf3 {[%clk 0:02:52]}  Nc6 {[%clk 0:02:28]} 7. O-O {[%clk 0:02:52]}  e5 {[%clk 0:02:27]} 8. d5 {[%clk 0:02:52]}  Ne7 {[%clk 0:02:27]} 9. Ne1 {[%clk 0:02:48]}  Ne8 {[%clk 0:02:22]} 10. Nd3 {[%clk 0:02:48]}  f5 {[%clk 0:02:22]} 11. f3 {[%clk 0:02:48]}  f4 {[%clk 0:02:17]} 12. Bd2 {[%clk 0:02:48]}  g5 {[%clk 0:02:15]} 13. Nf2 {[%clk 0:02:48]}  h5 {[%clk 0:02:14]} 14. b4 {[%clk 0:02:47]}  Rf6 {[%clk 0:02:10]} 15. c5 {[%clk 0:02:47]}  Rg6 {[%clk 0:02:10]} 16. Kh1 {[%clk 0:02:47]}  Nf6 {[%clk 0:02:09]} 17. g3 {[%clk 0:02:46]}  a6 {[%clk 0:01:53]} 18. Rg1 {[%clk 0:02:43]}  Qe8 {[%clk 0:01:50]} 19. a4 {[%clk 0:02:42]}  Bd7 {[%clk 0:01:49]} 20. a5 {[%clk 0:02:41]}  fxg3 {[%clk 0:01:29]} 21. Rxg3 {[%clk 0:02:41]}  Nh7 {[%clk 0:01:21]} 22. Qb3 {[%clk 0:02:39]}  Qf7 {[%clk 0:01:18]} 23. Be3 {[%clk 0:02:36]}  Rf8 {[%clk 0:00:57]} 24. Rag1 {[%clk 0:02:32]}  Bh6 {[%clk 0:00:48]} 25. b5 {[%clk 0:02:30]}  axb5 {[%clk 0:00:43]} 26. Nxb5 {[%clk 0:02:31]}  Bxb5 {[%clk 0:00:32]} 27. Qxb5 {[%clk 0:02:30]}  g4 {[%clk 0:00:32]} 28. Bxh6 {[%clk 0:02:26]}  Rxh6 {[%clk 0:00:33]} 29. Qxb7 {[%clk 0:02:22]}  Ng6 {[%clk 0:00:32]} 30. a6 {[%clk 0:02:14]}  Nf4 {[%clk 0:00:26]} 31. Bf1 {[%clk 0:02:11]}  dxc5 {[%clk 0:00:05]} 32. Rxg4+ {[%clk 0:02:08]}  hxg4 {[%clk 0:00:05]} 33. Nxg4 {[%clk 0:02:09]}  Rg6 {[%clk 0:00:04]} 34. Nh6+ {[%clk 0:02:09]} 1-0


[Site "https://www.chess.com"]

[Event "Titled Tuesday Blitz April 18 Early 2023"]
[White "Dushyant Sharma"]
[Black "Aydincelebi, Kagan"]
[WhiteFideId "25065130"]
[BlackFideId "6361102"]
[WhiteElo "2198"]
[BlackElo "2180"]
[Result "1/2-1/2"]
[Round "02"]
[TimeControl "180+2"]
[Date "2023.04.18"]
[WhiteClock "0:00:06"]
[BlackClock "0:00:10"]

1. e4 {[%clk 0:03:00]}  c5 {[%clk 0:03:00]} 2. Nf3 {[%clk 0:03:01]}  Nc6 {[%clk 0:03:00]} 3. d4 {[%clk 0:03:01]}  cxd4 {[%clk 0:03:01]} 4. Nxd4 {[%clk 0:03:02]}  Nf6 {[%clk 0:03:02]} 5. Nc3 {[%clk 0:03:02]}  d6 {[%clk 0:03:03]} 6. f4 {[%clk 0:03:02]}  g6 {[%clk 0:03:02]} 7. Nf3 {[%clk 0:03:02]}  Bg7 {[%clk 0:03:03]} 8. Bd3 {[%clk 0:03:02]}  O-O {[%clk 0:03:03]} 9. O-O {[%clk 0:03:02]}  Bg4 {[%clk 0:03:01]} 10. Qe1 {[%clk 0:03:02]}  Rc8 {[%clk 0:02:52]} 11. Bd2 {[%clk 0:03:01]}  Nd7 {[%clk 0:02:42]} 12. Kh1 {[%clk 0:02:58]}  Nb4 {[%clk 0:02:37]} 13. Qh4 {[%clk 0:02:53]}  Bxf3 {[%clk 0:02:37]} 14. Rxf3 {[%clk 0:02:54]}  e6 {[%clk 0:02:38]} 15. Qf2 {[%clk 0:02:49]}  Nxd3 {[%clk 0:02:32]} 16. cxd3 {[%clk 0:02:47]}  a6 {[%clk 0:02:24]} 17. Rf1 {[%clk 0:02:42]}  f5 {[%clk 0:02:21]} 18. Re1 {[%clk 0:02:25]}  Qf6 {[%clk 0:02:08]} 19. h3 {[%clk 0:02:22]}  b5 {[%clk 0:02:01]} 20. a3 {[%clk 0:02:17]}  Nc5 {[%clk 0:02:01]} 21. Nd1 {[%clk 0:02:01]}  Qf7 {[%clk 0:01:52]} 22. Bc3 {[%clk 0:01:55]}  Rfe8 {[%clk 0:01:48]} 23. Bxg7 {[%clk 0:01:54]}  Qxg7 {[%clk 0:01:49]} 24. Nc3 {[%clk 0:01:54]}  Rb8 {[%clk 0:01:28]} 25. e5 {[%clk 0:01:12]}  Qd7 {[%clk 0:01:16]} 26. d4 {[%clk 0:01:08]}  Nb7 {[%clk 0:01:08]} 27. d5 {[%clk 0:00:51]}  dxe5 {[%clk 0:01:05]} 28. Rxe5 {[%clk 0:00:51]}  Nd6 {[%clk 0:00:54]} 29. Qe2 {[%clk 0:00:45]}  exd5 {[%clk 0:00:48]} 30. Nxd5 {[%clk 0:00:46]}  Kf7 {[%clk 0:00:39]} 31. Rc3 {[%clk 0:00:41]}  Nc4 {[%clk 0:00:35]} 32. Rxe8 {[%clk 0:00:26]}  Rxe8 {[%clk 0:00:35]} 33. Qf3 {[%clk 0:00:26]}  Re1+ {[%clk 0:00:29]} 34. Kh2 {[%clk 0:00:27]}  Qa7 {[%clk 0:00:30]} 35. b3 {[%clk 0:00:20]}  Qg1+ {[%clk 0:00:20]} 36. Kg3 {[%clk 0:00:21]}  Nd2 {[%clk 0:00:21]} 37. Rc7+ {[%clk 0:00:20]}  Kf8 {[%clk 0:00:22]} 38. Rc8+ {[%clk 0:00:18]}  Kf7 {[%clk 0:00:21]} 39. Rc7+ {[%clk 0:00:18]}  Kf8 {[%clk 0:00:22]} 40. Rc8+ {[%clk 0:00:13]}  Re8 {[%clk 0:00:16]} 41. Rxe8+ {[%clk 0:00:10]}  Kxe8 {[%clk 0:00:17]} 42. Nc7+ {[%clk 0:00:08]}  Kd7 {[%clk 0:00:13]} 43. Qd3+ {[%clk 0:00:04]}  Kxc7 {[%clk 0:00:13]} 44. Qxd2 {[%clk 0:00:05]}  Qc5 {[%clk 0:00:13]} 45. b4 {[%clk 0:00:04]}  Qc4 {[%clk 0:00:13]} 46. Qe3 {[%clk 0:00:04]}  Kd6 {[%clk 0:00:10]} 47. Qe5+ {[%clk 0:00:05]}  Kc6 {[%clk 0:00:09]} 48. Qf6+ {[%clk 0:00:05]}  Kd5 {[%clk 0:00:09]} 49. Qe5+ {[%clk 0:00:05]}  Kc6 {[%clk 0:00:09]} 50. Qf6+ {[%clk 0:00:06]}  Kd5 {[%clk 0:00:09]} 51. Qe5+ {[%clk 0:00:06]}  Kc6 {[%clk 0:00:10]} 1/2-1/2


[Site "https://www.chess.com"]

[Event "Titled Tuesday Blitz April 18 Early 2023"]
[White "Fier, Alexandr"]
[Black "Ordekalog"]
[WhiteFideId "2107139"]
[WhiteElo "2610"]
[BlackElo "2537"]
[Result "1-0"]
[Round "02"]
[TimeControl "180+2"]
[Date "2023.04.18"]
[WhiteClock "0:01:10"]
[BlackClock "0:00:02"]

1. d4 {[%clk 0:02:56]}  d5 {[%clk 0:02:59]} 2. c4 {[%clk 0:02:57]}  e6 {[%clk 0:02:58]} 3. Nc3 {[%clk 0:02:57]}  c5 {[%clk 0:02:58]} 4. cxd5 {[%clk 0:02:56]}  exd5 {[%clk 0:02:58]} 5. dxc5 {[%clk 0:02:57]}  d4 {[%clk 0:02:57]} 6. Na4 {[%clk 0:02:57]}  Bxc5 {[%clk 0:02:57]} 7. Nxc5 {[%clk 0:02:57]}  Qa5+ {[%clk 0:02:57]} 8. Bd2 {[%clk 0:02:57]}  Qxc5 {[%clk 0:02:57]} 9. Rc1 {[%clk 0:02:53]}  Qf5 {[%clk 0:02:57]} 10. Nf3 {[%clk 0:02:52]}  Nc6 {[%clk 0:02:56]} 11. e3 {[%clk 0:02:53]}  dxe3 {[%clk 0:02:51]} 12. Bxe3 {[%clk 0:02:53]}  Nf6 {[%clk 0:02:51]} 13. Bd3 {[%clk 0:02:47]}  Qa5+ {[%clk 0:02:48]} 14. Bd2 {[%clk 0:02:47]}  Qxa2 {[%clk 0:02:46]} 15. Bc3 {[%clk 0:02:47]}  Qe6+ {[%clk 0:02:45]} 16. Be2 {[%clk 0:02:34]}  O-O {[%clk 0:02:44]} 17. O-O {[%clk 0:02:34]}  Ne4 {[%clk 0:02:38]} 18. Be1 {[%clk 0:02:32]}  Rd8 {[%clk 0:02:27]} 19. Qc2 {[%clk 0:02:31]}  Qe7 {[%clk 0:02:11]} 20. Bb5 {[%clk 0:02:06]}  Bf5 {[%clk 0:02:07]} 21. Qa4 {[%clk 0:01:54]}  Rac8 {[%clk 0:01:54]} 22. Bxc6 {[%clk 0:01:50]}  bxc6 {[%clk 0:01:54]} 23. Ba5 {[%clk 0:01:49]}  Re8 {[%clk 0:01:45]} 24. Rxc6 {[%clk 0:01:47]}  Bd7 {[%clk 0:01:40]} 25. Rfc1 {[%clk 0:01:40]}  Rxc6 {[%clk 0:01:36]} 26. Rxc6 {[%clk 0:01:41]}  Nc5 {[%clk 0:00:58]} 27. Qb5 {[%clk 0:01:34]}  Bxc6 {[%clk 0:00:33]} 28. Qxc6 {[%clk 0:01:34]}  Nd3 {[%clk 0:00:32]} 29. Bc3 {[%clk 0:01:25]}  h6 {[%clk 0:00:31]} 30. h3 {[%clk 0:01:25]}  Nf4 {[%clk 0:00:31]} 31. Be5 {[%clk 0:01:22]}  Ne6 {[%clk 0:00:25]} 32. Bd6 {[%clk 0:01:20]}  Qd8 {[%clk 0:00:22]} 33. b4 {[%clk 0:01:21]}  Qc8 {[%clk 0:00:22]} 34. Qa4 {[%clk 0:01:19]}  Rd8 {[%clk 0:00:15]} 35. Be5 {[%clk 0:01:20]}  Qc1+ {[%clk 0:00:13]} 36. Kh2 {[%clk 0:01:19]}  Qf1 {[%clk 0:00:08]} 37. Qxa7 {[%clk 0:01:19]}  Qc4 {[%clk 0:00:06]} 38. Qb6 {[%clk 0:01:17]}  Rd5 {[%clk 0:00:04]} 39. Qb8+ {[%clk 0:01:16]}  Kh7 {[%clk 0:00:04]} 40. Qb7 {[%clk 0:01:17]}  Rxe5 {[%clk 0:00:04]} 41. Nxe5 {[%clk 0:01:11]}  Qf4+ {[%clk 0:00:03]} 42. g3 {[%clk 0:01:12]}  Qxe5 {[%clk 0:00:04]} 43. b5 {[%clk 0:01:13]}  Qb2 {[%clk 0:00:02]} 44. Qxf7 {[%clk 0:01:10]} 1-0


[Site "https://www.chess.com"]

[Event "Titled Tuesday Blitz April 18 Early 2023"]
[White "Szpar, Milosz"]
[Black "Tomaszewski, Kacper"]
[WhiteFideId "1184989"]
[BlackFideId "1127373"]
[WhiteElo "2436"]
[BlackElo "2211"]
[Result "1-0"]
[Round "02"]
[TimeControl "180+2"]
[Date "2023.04.18"]
[WhiteClock "0:00:06"]
[BlackClock "0:00:01"]

1. e4 {[%clk 0:03:00]}  e5 {[%clk 0:02:59]} 2. Nf3 {[%clk 0:03:00]}  Nc6 {[%clk 0:02:59]} 3. Bb5 {[%clk 0:02:59]}  Nge7 {[%clk 0:02:59]} 4. d4 {[%clk 0:02:49]}  exd4 {[%clk 0:02:58]} 5. Nxd4 {[%clk 0:02:50]}  Nxd4 {[%clk 0:02:55]} 6. Qxd4 {[%clk 0:02:48]}  Nc6 {[%clk 0:02:56]} 7. Qd3 {[%clk 0:02:29]}  Bc5 {[%clk 0:02:53]} 8. O-O {[%clk 0:02:27]}  O-O {[%clk 0:02:52]} 9. Qg3 {[%clk 0:02:19]}  Kh8 {[%clk 0:02:47]} 10. Nc3 {[%clk 0:02:17]}  d6 {[%clk 0:02:35]} 11. Bg5 {[%clk 0:02:12]}  f6 {[%clk 0:02:33]} 12. Bd2 {[%clk 0:02:00]}  Nd4 {[%clk 0:02:29]} 13. Bd3 {[%clk 0:01:59]}  f5 {[%clk 0:02:25]} 14. Kh1 {[%clk 0:01:48]}  Qf6 {[%clk 0:01:54]} 15. Nd5 {[%clk 0:01:44]}  Qf7 {[%clk 0:01:55]} 16. c3 {[%clk 0:01:41]}  Nc6 {[%clk 0:01:49]} 17. f3 {[%clk 0:01:24]}  Ne5 {[%clk 0:01:42]} 18. Bc2 {[%clk 0:01:17]}  Be6 {[%clk 0:01:40]} 19. Nf4 {[%clk 0:01:14]}  Bc4 {[%clk 0:01:30]} 20. exf5 {[%clk 0:00:59]}  Bxf1 {[%clk 0:01:23]} 21. Rxf1 {[%clk 0:00:59]}  Nc4 {[%clk 0:01:14]} 22. Ng6+ {[%clk 0:00:41]}  Kg8 {[%clk 0:01:14]} 23. Bc1 {[%clk 0:00:34]}  d5 {[%clk 0:00:54]} 24. Nxf8 {[%clk 0:00:23]}  Rxf8 {[%clk 0:00:55]} 25. Re1 {[%clk 0:00:21]}  Re8 {[%clk 0:00:46]} 26. f4 {[%clk 0:00:13]}  Nd6 {[%clk 0:00:31]} 27. Re5 {[%clk 0:00:13]}  Nc4 {[%clk 0:00:24]} 28. Rxe8+ {[%clk 0:00:11]}  Qxe8 {[%clk 0:00:25]} 29. h4 {[%clk 0:00:10]}  Qe2 {[%clk 0:00:23]} 30. f6 {[%clk 0:00:02]}  Qf1+ {[%clk 0:00:16]} 31. Kh2 {[%clk 0:00:02]}  Qg1+ {[%clk 0:00:11]} 32. Kh3 {[%clk 0:00:03]}  Qh1+ {[%clk 0:00:11]} 33. Kg4 {[%clk 0:00:03]}  Qxc1 {[%clk 0:00:11]} 34. Kh5 {[%clk 0:00:04]}  g6+ {[%clk 0:00:09]} 35. Bxg6 {[%clk 0:00:04]}  Qe1 {[%clk 0:00:09]} 36. Bxh7+ {[%clk 0:00:02]}  Kf7 {[%clk 0:00:09]} 37. Qg7+ {[%clk 0:00:02]}  Ke8 {[%clk 0:00:09]} 38. f7+ {[%clk 0:00:02]}  Kd8 {[%clk 0:00:08]} 39. f8=Q+ {[%clk 0:00:02]}  Bxf8 {[%clk 0:00:08]} 40. Qxf8+ {[%clk 0:00:03]}  Kd7 {[%clk 0:00:07]} 41. Bf5+ {[%clk 0:00:04]}  Kc6 {[%clk 0:00:06]} 42. g4 {[%clk 0:00:04]}  Nd6 {[%clk 0:00:03]} 43. Qf6 {[%clk 0:00:05]}  Kb5 {[%clk 0:00:02]} 44. Qe5 {[%clk 0:00:05]}  Ne4 {[%clk 0:00:02]} 45. Qxd5+ {[%clk 0:00:05]}  Nc5 {[%clk 0:00:01]} 46. a4+ {[%clk 0:00:06]}  Kb6 {[%clk 0:00:01]} 47. a5+ {[%clk 0:00:06]}  Kb5 {[%clk 0:00:01]} 48. Bd3+ {[%clk 0:00:06]}  Ka4 {[%clk 0:00:01]} 49. Qc4+ {[%clk 0:00:06]} 1-0


[Site "https://www.chess.com"]

[Event "Titled Tuesday Blitz April 18 Early 2023"]
[White "Beerdsen, Thomas"]
[Black "Horak, Martin"]
[WhiteFideId "1030108"]
[BlackFideId "367095"]
[WhiteElo "2547"]
[BlackElo "2091"]
[Result "1-0"]
[Round "02"]
[TimeControl "180+2"]
[Date "2023.04.18"]
[WhiteClock "0:00:45"]
[BlackClock "0:00:01"]

1. e4 {[%clk 0:02:11]}  c5 {[%clk 0:02:59]} 2. Nf3 {[%clk 0:02:10]}  Nc6 {[%clk 0:02:59]} 3. Bc4 {[%clk 0:02:10]}  Nf6 {[%clk 0:02:46]} 4. e5 {[%clk 0:02:08]}  d5 {[%clk 0:02:43]} 5. Bb5 {[%clk 0:02:08]}  Nd7 {[%clk 0:02:37]} 6. Qe2 {[%clk 0:02:05]}  Nb6 {[%clk 0:02:24]} 7. d4 {[%clk 0:01:54]}  Bg4 {[%clk 0:02:00]} 8. dxc5 {[%clk 0:01:53]}  Nd7 {[%clk 0:02:01]} 9. O-O {[%clk 0:01:46]}  Nd4 {[%clk 0:01:51]} 10. Qd3 {[%clk 0:01:41]}  Nxf3+ {[%clk 0:01:27]} 11. gxf3 {[%clk 0:01:41]}  Bh3 {[%clk 0:01:27]} 12. e6 {[%clk 0:01:31]}  Bxe6 {[%clk 0:01:16]} 13. Nc3 {[%clk 0:01:25]}  g6 {[%clk 0:00:53]} 14. Nxd5 {[%clk 0:01:22]}  Bg7 {[%clk 0:00:52]} 15. Bg5 {[%clk 0:01:23]}  Bf6 {[%clk 0:00:17]} 16. Bh6 {[%clk 0:01:19]}  a6 {[%clk 0:00:08]} 17. Ba4 {[%clk 0:01:17]}  Qa5 {[%clk 0:00:07]} 18. Nxf6+ {[%clk 0:01:16]}  exf6 {[%clk 0:00:07]} 19. Bxd7+ {[%clk 0:01:17]}  Bxd7 {[%clk 0:00:07]} 20. Rfe1+ {[%clk 0:01:02]}  Be6 {[%clk 0:00:07]} 21. c6 {[%clk 0:00:56]}  Rd8 {[%clk 0:00:06]} 22. Qb3 {[%clk 0:00:45]}  bxc6 {[%clk 0:00:01]} 23. Rxe6+ {[%clk 0:00:45]}  fxe6 {[%clk 0:00:01]} 24. Qxe6# {[%clk 0:00:45]} 1-0


[Site "https://www.chess.com"]